Cogmind - Beta 12 X1 @@@ ROGUE MODE // 2022.07.21 @ 17:55:01 Player: btmk16 Result: Destroyed by H-66 Slayer with Gauss Rifle Performance ------------- Evolutions (1) 500 Regions Visited (5) 1000 Robots Destroyed (31) 155 Value Destroyed (796) 796 Prototype IDs (6) 120 Alien Tech Used (0) 0 Bonus (0) 0 TOTAL SCORE: 2571 Bonus ------- None Cogmind --------- Core Integrity 0/400 Matter 209/300 Energy 52/100 System Corruption 4% Temperature Warm (133) Movement Core (1450) Ox28 Location -6/Proximity Caves Parts ------- > --- POWER (1) -------- (None) > --- PROPULSION (2) --- Gravmag System > --- UTILITY (3) ------ Huge Storage Unit Hacking Suite Experimental Hacking Suite > --- WEAPON (3) ------- Rocket Array > --- INVENTORY (25) --- Large Battery (200) Targeting Computer Hardened Light Armor Plating Hardened Light Armor Plating Hardened Light Armor Plating Hardened Heavy Armor Plating Hacking Suite Hacking Suite Hacking Suite Hacking Suite Heavy EM Pulse Gun Heavy EM Shotgun Heavy EM Shotgun Storm Laser Heavy Missile Launcher Precision Grenade Launcher Remote Datajack Power Sword CR-A16's Pointy Stick Peak State ------------ > --- POWER ------------ Fission Core > --- PROPULSION ------- Wheel Gravmag System > --- UTILITY ---------- Huge Storage Unit Hacking Suite Experimental Hacking Suite > --- WEAPON ----------- Heavy EM Shotgun Beam Rifle Power Sword > --- INVENTORY -------- Large Battery Targeting Computer Hardened Light Armor Plating Hardened Light Armor Plating Hardened Light Armor Plating Hardened Heavy Armor Plating Hacking Suite Hacking Suite Hacking Suite Hacking Suite EM Pulse Gun Heavy EM Pulse Gun Heavy EM Pulse Gun Heavy EM Shotgun Heavy EM Shotgun Storm Laser Heavy Missile Launcher Precision Grenade Launcher Rocket Array Remote Datajack CR-A16's Pointy Stick [Rating: 41] Favorites ----------- Power Light Ion Engine Engine Light Ion Engine Power Core Fission Core Propulsion Wheel Leg Aluminum Leg Wheel Wheel Hover Unit Gravmag System Utility Huge Storage Unit Device Improved Terrain Scanner Storage Huge Storage Unit Hackware Hacking Suite Protection Hardened Light Armor Plating Weapon Heavy EM Shotgun Energy Gun Heavy EM Shotgun Ballistic Gun Light Assault Rifle Launcher Heavy Missile Launcher Slashing Weapon Makeshift Axe Piercing Weapon CR-A16's Pointy Stick Build | -11 -10 -9 -9 -7 -6 ------- Run | Scr Mat Mat Min Zio Pro Slots Evolved 2 | . . 2 . . . Power . | . . . . . . Propulsion . | . . . . . . Utility 1 | . . 1 . . . Weapon 1 | . . 1 . . . Parts Attached 39 | 1 11 5 3 10 9 Power 6 | . 2 2 . 1 1 Engine 5 | . 2 2 . 1 . Core 1 | . . . . . 1 Reactor . | . . . . . . Propulsion 9 | . 4 . 3 1 1 Treads . | . . . . . . Leg . | . . . . . . Wheel 8 | . 4 . 3 1 . Hover 1 | . . . . . 1 Flight . | . . . . . . Utility 5 | 1 1 1 . 2 . Device 1 | 1 . . . . . Storage 1 | . 1 . . . . Processor . | . . . . . . Hackware 2 | . . 1 . 1 . Protection 1 | . . . . 1 . Artifact . | . . . . . . Weapon 19 | . 4 2 . 6 7 Energy Gun 10 | . 2 2 . 3 3 Energy Cannon . | . . . . . . Ballistic Gun 2 | . 2 . . . . Ballistic Cannon . | . . . . . . Launcher 4 | . . . . 2 2 Special Weapon . | . . . . . . Impact Weapon . | . . . . . . Slashing Weapon 2 | . . . . . 2 Piercing Weapon 1 | . . . . 1 . Special Melee Weapon . | . . . . . . Unidentified Prototypes 4 | . . 1 . 3 . Parts Lost 19 | . 2 1 9 . 7 Power 3 | . . 1 1 . 1 Propulsion 7 | . 1 . 4 . 2 Utility 1 | . . . 1 . . Weapon 8 | . 1 . 3 . 4 Highest Loss Streak 9 | . 1 1 9 . 6 To Critical Strikes . | . . . . . . Average Slot Usage (%) 89 | . 99 92 97 77 98 Engine 8 | . 13 10 10 7 3 Core 1 | . . . . . 7 Leg 1 | . 6 . . . . Wheel 18 | . 21 22 21 18 13 Hover 1 | . . . . . 7 Device 4 | . 14 11 10 . . Storage 11 | . 14 11 11 11 11 Hackware 11 | . . 6 11 14 22 Protection 1 | . . . . 3 . Energy Gun 14 | . 3 19 21 15 22 Ballistic Gun 7 | . 24 11 10 . . Slashing Weapon 1 | . . . . . 7 Piercing Weapon 2 | . . . . 5 2 Naked Turns . | . . . . . . Heaviest Build 100 | 11 90 94 94 99 100 Greatest Support 26 | 20 26 26 26 20 20 Greatest Overweight (x) 9 | . 3 3 8 7 9 Average Overweight (x) 4 | . 2 3 3 4 7 Largest Inventory Capacity 25 | 8 25 25 25 25 25 Average Capacity 23 | 8 21 25 25 25 25 Most Carried 25 | 8 23 25 24 25 25 Average Carried 22 | 6 16 22 23 24 24 Final Capacity 25 | 8 25 25 25 25 25 Final Carried 25 | 8 22 24 21 25 23 Class Distribution -------------------- 50% | Mutant 30% | Hacker-Mutant 12% | Skirmisher 5% | Tank Dominant Class ---------------- Mutant | -10/Materials Skirmisher | -9/Materials Skirmisher | -9/Mines Mutant | -7/Zion Hacker-Mutant | -6/Proximity Caves Resources | -11 -10 -9 -9 -7 -6 ----------- Run | Scr Mat Mat Min Zio Pro Matter Collected 725 | 220 249 82 12 28 134 Remotely . | . . . . . . Salvage Created 1097 | 114 553 186 140 . 104 Parts 79 | 7 35 16 14 . 7 Haulers Intercepted 1 | . 1 . . . . Recyclers Shooed . | . . . . . . Parts Field Recycled . | . . . . . . Retrieved Matter . | . . . . . . Parts Self-Destructed 5 | . . . . . 5 Prevented . | . . . . . . Kills | -11 -10 -9 -9 -7 -6 ------- Run | Scr Mat Mat Min Zio Pro Combat Hostiles Destroyed 23 | . 13 3 5 . 2 Melee 1 | . . . . . 1 Guns 21 | . 13 3 5 . . AOE 1 | . . . . . 1 Classes Destroyed 11 | 2 5 2 . . 2 Worker 2 | . 2 . . . . Builder 1 | . . 1 . . . Tunneler 1 | 1 . . . . . Hauler 1 | . 1 . . . . Recycler 1 | 1 . . . . . Mechanic 1 | . . 1 . . . Operator 1 | . 1 . . . . Swarmer 6 | . 3 . 3 . . Grunt 15 | . 10 3 2 . . Hunter 1 | . . . . . 1 Programmer 1 | . . . . . 1 Best Kill Streak 4 | 2 4 3 3 . 1 Combat Bots Only 3 | . 3 2 3 . 1 Max Kills in Single Turn 2 | 1 1 2 1 . 1 Gunslinging 1 | . . 1 . . . Exploded 1 | . . . . . 1 Melee 1 | . . . . . 1 Uniques/NPCs Destroyed . | . . . . . . Combat | -11 -10 -9 -9 -7 -6 -------- Run | Scr Mat Mat Min Zio Pro Damage Taken 1795 | . 476 92 589 . 638 Core 557 | . 153 16 202 . 186 Absorbed by Shields . | . . . . . . Core Remaining (%) 69 | 100 38 . . . . Volleys Fired 95 | 5 58 10 9 3 10 Largest 3 | 2 2 3 3 1 3 Hottest 146 | 40 65 126 126 56 146 Shots Fired 197 | 10 115 26 24 3 19 Gun 194 | 10 115 26 24 3 16 Cannon . | . . . . . . Launcher 3 | . . . . . 3 Special . | . . . . . . Kinetic 138 | 10 109 10 9 . . Thermal 27 | . . 8 9 3 7 Explosive 3 | . . . . . 3 Electromagnetic 29 | . 6 8 6 . 9 Robot Hit Streak 16 | 4 16 6 5 . 5 Robot Miss Streak 5 | 2 3 2 5 . 2 Penetration Max . | . . . . . . Secondary Targets 4 | . 2 1 1 . . Max Gunslinging Chain 1 | . 1 1 1 . . Shots Hit Robots 131 | 6 78 16 12 . 19 Core Hits 62 | 4 37 8 7 . 6 Critical Kills 1 | . 1 . . . . Critical Parts Destroyed 1 | . 1 . . . . Critical Strikes 3 | . 2 . . . 1 Destroy 2 | . 2 . . . . Sever 1 | . . . . . 1 Melee Attacks 9 | . . . . 1 8 Impact . | . . . . . . Slashing 8 | . . . . . 8 Piercing 1 | . . . . 1 . Sneak Attacks . | . . . . . . Combat Hostiles . | . . . . . . Follow-up Attacks . | . . . . . . Damage Inflicted 1955 | 44 830 286 207 . 588 Guns 1482 | 44 807 240 207 . 184 Cannons . | . . . . . . Explosions 309 | . 23 46 . . 240 Melee 164 | . . . . . 164 Ramming . | . . . . . . Kinetic 877 | 44 737 56 40 . . Thermal 292 | . 23 106 74 . 89 Explosive 240 | . . . . . 240 Electromagnetic 382 | . 70 124 93 . 95 Impact . | . . . . . . Slashing 164 | . . . . . 164 Piercing . | . . . . . . Highest Corruption 4 | . . . 3 3 4 Average Corruption 3 | . . . 3 3 3 Corruption Purged . | . . . . . . Corruption Blocked . | . . . . . . Effects 19 | . . . . 6 13 Message Errors 4 | . . . . 1 3 Matter Fused 5 | . . . . 2 3 Heat Flow Errors 2 | . . . . 1 1 Energy Discharges 4 | . . . . . 4 Data Loss (minor) 1 | . . . . . 1 Data Loss (major) 2 | . . . . 1 1 Alerts 1 | . . . . 1 . Overload Shots . | . . . . . . Overflow Damage . | . . . . . . Projectiles . | . . . . . . Explosions . | . . . . . . Melee . | . . . . . . Knockbacks . | . . . . . . Impact . | . . . . . . Kinetic . | . . . . . . Secondary . | . . . . . . Self-Inflicted Damage 16 | . . 16 . . . Shots 1 | . . 1 . . . Rammed . | . . . . . . Targets Rammed . | . . . . . . Kicked . | . . . . . . Crushed . | . . . . . . Highest Temperature 268 | . 40 131 267 128 268 Average Temperature 66 | . 12 54 96 45 131 Received Heat Transfer 335 | . 225 42 68 . . Siege Activations . | . . . . . . Robots Corrupted . | . . . . . . Combat Hostiles . | . . . . . . Parts Fried . | . . . . . . Impact Corruptions . | . . . . . . Robots Melted . | . . . . . . Combat Hostiles . | . . . . . . Parts Melted . | . . . . . . Heat Transferred 655 | . 50 198 185 . 222 Parts Sabotaged . | . . . . . . Parts Stolen . | . . . . . . Parts Stripped . | . . . . . . Power Chain Reactions 2 | . 1 1 . . . Missiles Intercepted . | . . . . . . Alert | -11 -10 -9 -9 -7 -6 ------- Run | Scr Mat Mat Min Zio Pro Peak Influence 259 | 10 259 166 184 . . Initial 64 | . 6 45 64 . . Average 129 | 7 146 96 115 . . Maximum Alert Level 1 | . 1 . . . . Low Security (%) 73 | 100 57 100 100 . . Level 1 26 | . 42 . . . . Level 2 . | . . . . . . Level 3 . | . . . . . . Level 4 . | . . . . . . Level 5 . | . . . . . . High Security . | . . . . . . Max Security . | . . . . . . Squads Dispatched 4 | . 2 2 . . . Investigation 1 | . . 1 . . . Extermination . | . . . . . . Reinforcement 3 | . 2 1 . . . Assault . | . . . . . . Garrison . | . . . . . . Intercept . | . . . . . . Searches Triggered . | . . . . . . Construction Impeded . | . . . . . . Haulers Reinforced . | . . . . . . Active Scanning Responses . | . . . . . . Cargo Convoy Interrupts . | . . . . . . Stealth | -11 -10 -9 -9 -7 -6 --------- Run | Scr Mat Mat Min Zio Pro Distress Signals 1 | . 1 . . . . Communications Jammed . | . . . . . . Distress Signals . | . . . . . . Times Spotted 60 | . 24 6 27 . 3 Peak Tracking Total 17 | . 6 2 17 . 2 Tactical Retreats 1 | . 1 . . . . Traps | -11 -10 -9 -9 -7 -6 ------- Run | Scr Mat Mat Min Zio Pro Traps Triggered 3 | . 2 1 . . . Indirectly . | . . . . . . Trap Hack Attempts . | . . . . . . Triggered . | . . . . . . Disarmed . | . . . . . . Reprogrammed . | . . . . . . Reused . | . . . . . . Traps Extracted . | . . . . . . Installed . | . . . . . . Triggered . | . . . . . . Machines | -11 -10 -9 -9 -7 -6 ---------- Run | Scr Mat Mat Min Zio Pro Machines Disabled 1 | . . 1 . . . Max in Single Turn 1 | . . 1 . . . Machines Sabotaged . | . . . . . . Garrisons Compromised . | . . . . . . Overloaded Fab Kills . | . . . . . . Hacking | -11 -10 -9 -9 -7 -6 --------- Run | Scr Mat Mat Min Zio Pro Machines Accessed 3 | . 3 . . . . Terminals 3 | . 3 . . . . Fabricators . | . . . . . . Repair Stations . | . . . . . . Recycling Units . | . . . . . . Scanalyzers . | . . . . . . Garrison Access . | . . . . . . Total Hacks 16 | . 16 . . . . Successful 7 | . 7 . . . . Failed 9 | . 9 . . . . Catastrophic 1 | . 1 . . . . Database Lockouts . | . . . . . . Manual 10 | . 10 . . . . Terminals 16 | . 16 . . . . Fabricators . | . . . . . . Repair Stations . | . . . . . . Recycling Units . | . . . . . . Scanalyzers . | . . . . . . Garrison Access . | . . . . . . Terminal Hacks 6 | . 6 . . . . Robot Analysis 5 | . 5 . . . . Prototype ID Bank 1 | . 1 . . . . Fabricator Hacks . | . . . . . . Repair Station Hacks . | . . . . . . Recycling Unit Hacks . | . . . . . . Scanalyzer . | . . . . . . Garrison Access Hacks . | . . . . . . Unauthorized Hacks 1 | . 1 . . . . Terminals 1 | . 1 . . . . Botnet 1 | . 1 . . . . Fabricators . | . . . . . . Repair Stations . | . . . . . . Recycling Units . | . . . . . . Scanalyzers . | . . . . . . Garrison Access . | . . . . . . Data Cores Recovered . | . . . . . . Used . | . . . . . . Hacking Detections 3 | . 3 . . . . Full Trace Events . | . . . . . . Feedback Events . | . . . . . . Feedback Blocked . | . . . . . . Robot Schematics Acquired 4 | . . . . 4 . Robots Built . | . . . . . . Authchips . | . . . . . . Time . | . . . . . . Total Robot Build Rating . | . . . . . . Part Schematics Acquired 14 | . . . . 14 . Parts Built . | . . . . . . Authchips . | . . . . . . Time . | . . . . . . Total Part Build Rating . | . . . . . . Parts Repaired . | . . . . . . Time . | . . . . . . Parts Recycled . | . . . . . . Recycled Matter . | . . . . . . Retrieved Matter . | . . . . . . Retrieved Components . | . . . . . . Parts Scanalyzed . | . . . . . . Part Schematics Acquired . | . . . . . . Parts Damaged . | . . . . . . Bothacking | -11 -10 -9 -9 -7 -6 ------------ Run | Scr Mat Mat Min Zio Pro Used RIF Installer . | . . . . . . Robots Hacked . | . . . . . . Non-combat . | . . . . . . Combat . | . . . . . . Robot Hacks Applied . | . . . . . . Relay Couplers Released . | . . . . . . Fabnet Peak Effective % . | . . . . . . Robots Rewired . | . . . . . . Allies Hacked . | . . . . . . Hacks Repelled . | . . . . . . Allies | -11 -10 -9 -9 -7 -6 -------- Run | Scr Mat Mat Min Zio Pro Total Allies . | . . . . . . Largest Group . | . . . . . . Highest-Rated Group . | . . . . . . Highest-Rated Ally . | . . . . . . Total Orders . | . . . . . . Ally Attacks . | . . . . . . Total Damage . | . . . . . . Kills . | . . . . . . Allies Corrupted . | . . . . . . Allies Melted . | . . . . . . Intel | -11 -10 -9 -9 -7 -6 ------- Run | Scr Mat Mat Min Zio Pro Robot Analysis Total 5 | . 5 . . . . Derelict Logs Recovered 4 | . . . 1 2 1 Drone Launches . | . . . . . . Drone Recoveries . | . . . . . . Exploration | -11 -10 -9 -9 -7 -6 ------------- Run | Scr Mat Mat Min Zio Pro Turns Passed 3583 | 41 863 182 306 1504 687 Spaces Moved 2106 | 20 497 93 204 966 326 Core . | . . . . . . Treads . | . . . . . . Legs 129 | 20 109 . . . . Wheels 1977 | . 388 93 204 966 326 Hover . | . . . . . . Flight . | . . . . . . Fastest Speed 120 | 120 120 135 135 125 140 Average Speed 151 | 120 131 135 135 152 191 Slowest Speed 215 | 120 135 135 200 185 215 Overloaded Moves . | . . . . . . Propulsion Burnouts . | . . . . . . Robots Hopped . | . . . . . . Cave-ins Triggered . | . . . . . . Exploration Rate (%) 44 | 3 62 14 57 85 43 Regions Visited 5 Branch Regions 3 Pre-discovered Areas 2 | . . . 1 1 . Known Exits Taken . | . . . . . . Unknown Exits Taken 5 | 1 1 1 1 1 . Scrap Searched 4 | . . . . 1 3 Spaces Dug 15 | . . . . . 15 Terrain Destroyed 61 | . 8 6 . . 47 Melee . | . . . . . . Projectile . | . . . . . . AOE 61 | . 8 6 . . 47 Terrain Rammed . | . . . . . . Walls Destroyed . | . . . . . . Machines Disabled . | . . . . . . Actions | -11 -10 -9 -9 -7 -6 --------- Run | Scr Mat Mat Min Zio Pro Total 2334 | 29 605 132 216 990 362 Wait 35 | . 18 12 1 . 4 Move 2101 | 19 496 92 203 965 326 Hop . | . . . . . . Pick Up 34 | 3 17 7 . 6 1 Fast Attach 12 | 1 3 2 . 4 2 Attach 14 | . 2 2 3 5 2 Detach 3 | . . 1 . 2 . Swap 13 | . 6 1 . 1 5 Drop 18 | 1 5 5 . 3 4 Fire 95 | 5 58 10 9 3 10 Melee 9 | . . . . 1 8 Ram . | . . . . . . Kick . | . . . . . . Crush . | . . . . . . Escape Stasis . | . . . . . . Rewire . | . . . . . . Trap . | . . . . . . Miscellaneous . | . . . . . . Route ------- -11/Scrapyard -10/Materials (discovered 2 exits: [*Mat] / [*Min]) -9/Materials -9/Mines (discovered 2 exits: [*Mat] / [*Zio]) -7/Zion -6/Proximity Caves History --------- Turn | Location | Event 15 | -11/Scrapyard | Discovered new exit (range 3) 42 | -11/Scrapyard | Entered Materials 58 | -10/Materials | Discovered new exit (range 16) 318 | -10/Materials | Build established: Mutant 561 | -10/Materials | Discovered new exit (range 16) 663 | -10/Materials | Core integrity fell below 50% 905 | -10/Materials | Entered another Materials area 905 | -9/Materials | Evolved 2 slots: Utility x1, Weapon x1 1052 | -9/Materials | Discovered new exit (range 16) 1087 | -9/Materials | Entered Mines 1242 | -9/Mines | Build established: Skirmisher 1378 | -9/Mines | Assembled infested the area 1378 | -9/Mines | A Derelict revealed a hidden shortcut to a safe place 1380 | -9/Mines | Discovered new exit (range 9) 1393 | -9/Mines | Entered Zion 1394 | -7/Zion | Core integrity fell below 50% 1421 | -7/Zion | Lost 9 parts (1p4n1u3w) 1421 | -7/Zion | Found CR-A16's Pointy Stick 1498 | -7/Zion | Discovered new exit (range 16) 1641 | -7/Zion | Found Prototype Launcher 1641 | -7/Zion | Identified Rocket Array 1682 | -7/Zion | Build established: Mutant 1716 | -7/Zion | System corruption cleaned by Quarantine Array 1911 | -7/Zion | Found Prototype Energy Gun 2200 | -7/Zion | Learned Factory emergency access door positions 2435 | -7/Zion | Found Prototype Hackware 2435 | -7/Zion | Identified Exp. Hacking Suite 2722 | -7/Zion | Build established: Hacker-Mutant 2897 | -7/Zion | Entered Proximity Caves 3226 | -6/Proximity Caves | Learned Factory stockpile data 3575 | -6/Proximity Caves | Core integrity fell below 20% 3584 | -6/Proximity Caves | Destroyed by H-66 Slayer with Gauss Rifle Last Messages --------------- 03562_ Slug penetrates Wall. 03565_ Penetrated by Slug. 03565_ H-66 Slayer misfires. 03568_ Slug penetrates Wall. 03568_ Penetrated by Slug. 03568_ Hvy. EM Shotgun destroyed. 03571_ Penetrated by Slug. 03571_ Wheel destroyed. 03571_ Penetrated by Slug. 03571_ EM Pulse Gun destroyed. 03574_ H-66 Slayer misfires. 03574_ H-66 Slayer destroyed. 03574_ Penetrated by Slug. 03574_ Fission Core destroyed. 03574_ Penetrated by Slug. 03579_ The unstable cave ceiling collapses. 03581_ Penetrated by Slug. 03581_ Beam Rifle destroyed. 03581_ Hvy. EM Pulse Gun destroyed. 03584_ Penetrated by Slug. Map ----- +----------------------------------------------------+ | ## #?????# #????????????????? | | ?# ##????# ### ##????????????????? | | ## ###### #?# ##?????????????????? | | # ## ### ###??????????????????? | | # ## #????????????????????? | | ## #????????????????????? | | #### #####????????????????? | | ##??# ##???????????????? | | #???# #???????????????? | | ########?# ## ### #???????????????? | | ##?????# ## ######## ##???????????????? | | ##??????#! !! ##??#### #????????? ??????? | | #???????# [ ###???# ????##?? ??????? | | ????????## ######?# ## ? ## ???????? | | ?????????# #### ######?# # ????????? | | ????????## ### ##??## ?????????? | | ??????### ##?# ???????????? | | ??# ## #?# ???????????? | | ??# ## #?## ????????????? | | ??# ### #?# #?????????????? | | ?# ### #?# ## ????? | | ?# #?# ### h% ????? | | ?## #?# ???? | | ??# ### #?## ? ????? | | ??# #??#####??## #?? ????? | | ??### #???????????# @##???# ?????? | | ????# ???????????## / ##?????### #?????? | | ????# ????????????# [! #????????? #?????? | | ????# ???????????# #?????????? ??????? | | ????????????????# #??????????? ??????? | | ???????????????# ##???????????? ???????? | | ???????????????# #####????????????? ???????? | | ???????????????## #??????????????????? ?????????? | | ????????????????###??????????????????????????????? | | ?????????????????????????????????????????????????? | | ?????????????????????????????????????????????????? | | ?????????????????????????????????????????????????? | | ?????????????????????????????????????????????????? | | ?????????????????????????????????????????????????? | | ?????????????????????????????????????????????????? | | ?????????????????????????????????????????????????? | | ?????????????????????????????????????????????????? | | ?????????????????????????????????????????????????? | | ?????????????????????????????????????????????????? | | ?????????????????????????????????????????????????? | | ?????????????????????????????????????????????????? | | ?????????????????????????????????????????????????? | | ?????????????????????????????????????????????????? | | ?????????????????????????????????????????????????? | | ?????????????????????????????????????????????????? | +----------------------------------------------------+ Best States ------------- Heat Dissipation 28 Energy Generation 18 Energy Capacity 310 Matter Stores 300 Matter Capacity 300 Sight Range 16 Terrain Scan Range 16 Terrain Scan Density 10 Armor Coverage 150 Evasion (%) 55 Offensive Hacking 26 Item Schematics ----------------- Adv. Heat Sink | -7/Zion | Archive Energy Filter | -7/Zion | Archive Imp. Reaction Control System | -7/Zion | Archive Mak. Armor Plating | -7/Zion | Archive Tesla Rifle | -7/Zion | Archive Nuclear Pulse Thruster | -7/Zion | Archive Launcher Guidance Computer | -7/Zion | Archive Imp. Deuterium Engine | -7/Zion | Archive Point Defense System | -7/Zion | Archive Transmission Jammer | -7/Zion | Archive Imp. Particle Charger | -7/Zion | Archive Shock Absorption System | -7/Zion | Archive Mak. Hover Unit | -7/Zion | Archive Arc Projector | -7/Zion | Archive Robot Schematics ------------------ M-28 Smith | -7/Zion | Archive T-07 Excavator | -7/Zion | Archive K-01 Serf | -7/Zion | Archive Y-72 Warden | -7/Zion | Archive Fabricated ------------ Nothing Alien Tech Used ----------------- None Achievements -------------- None Challenges ------------ None Game ------ Seed TrapEnergyNanosword Manual? 0 Play Time 00:18:39 Cumulative 424.1 hours Start 2022.07.21 @ 17:37:51 End 2022.07.21 @ 17:55:01 Sessions 1 Manual Loads 0 Difficulty Rogue Special Mode None Game No. 484 Rogue 483 Adventurer 0 Explorer 1 Win Type - Total 11 Types 7/0/2/2/0/0/0/0/0 Lore% 77 Gallery% 88 Achievement% 66 Wizard Run 0 Options --------- ASCII 0 Keyboard 1 Movement Vi Keybinds 0 Fullscreen 1 Font 18/SmallcapsGlow Map View 76x50 Tactical HUD 1 Map Filters NONE Filters NONE Steam 1 RUN: 3b3c522d-f9d5-4ab0-a809-82a4e7daaaf8